bitfinex-derivatives/quotes_SOLF0:USTF0_20250501
["timestamp","ask_amount","ask_price","bid_price","bid_amount"]
[1746143002143,4.00776705,150.54,150.52,6.6412]
[1746143002347,4.00776705,150.53,150.52,6.6412]
[1746143002845,10.64816705,150.54,150.52,6.6412]
[1746143003046,4.00776705,150.53,150.52,6.6412]
[1746143007046,23.1,150.57,150.53,6.6404]
[1746143007253,4.01036894,150.56,150.53,6.6404]
[1746143007453,4.01036894,150.55,150.53,6.6404]
[1746143007751,4.01036894,150.54,150.52,6.6411]
[1746143007954,4.01036894,150.53,150.52,6.6411]
[1746143008343,4.01036894,150.56,150.52,6.6411]
[1746143008550,4.01036894,150.55,150.52,6.6411]
[1746143008751,4.01036894,150.54,150.52,6.6411]
[1746143008951,4.01036894,150.53,150.52,6.6411]
[1746143009153,4.01026181,150.53,150.52,6.6411]
[1746143009449,4.01026181,150.53,150.51,6.6416]
[1746143009650,23.1,150.57,150.47,23.1]
[1746143009651,4.01027763,150.52,150.47,23.1]
[1746143009950,4.01027763,150.51,150.47,23.1]
[1746143010148,6.6416,150.52,150.49,6.6422]
[1746143010547,6.6424,150.5,150.48,6.6429]
[1746143010751,6.6424,150.5,150.45,3.9488]
[1746143011354,6.6424,150.5,150.48,6.6428]
[1746143012457,6.6419,150.51,150.48,6.6428]
[1746143012859,4.00755301,150.5,150.49,6.6426]
[1746143013456,23.1,150.53,150.51,6.6414]
[1746143013655,4.00662927,150.52,150.51,6.6414]
[1746143016365,4.00524338,150.52,150.51,6.6414]
[1746143017662,23.1,150.53,150.52,6.6413]
[1746143017863,27.10520368,150.53,150.52,6.6413]
[1746143018866,27.10540166,150.53,150.52,6.6413]
[1746143021967,27.10617655,150.53,150.52,6.6413]
[1746143022768,27.10617655,150.53,150.51,6.6415]
[1746143022973,23.1,150.53,150.51,6.6415]
[1746143026776,4.01055438,150.52,150.51,6.6415]
[1746143027375,4.01216268,150.52,150.51,6.6415]
[1746143028278,4.01216268,150.52,150.5,6.642]
[1746143028472,23.1,150.53,150.5,6.642]
[1746143028673,4.01433699,150.52,150.5,6.642]
[1746143028873,23.1,150.53,150.5,6.642]
[1746143029073,4.01433751,150.52,150.5,6.642]
[1746143029274,23.1,150.53,150.5,6.642]
[1746143029474,4.01433756,150.52,150.5,6.642]
[1746143029676,4.01433756,150.51,150.5,6.642]
[1746143030080,4.0172468,150.51,150.5,6.642]
[1746143031082,4.01736253,150.51,150.5,6.642]
[1746143032884,4.01757826,150.51,150.5,6.642]
[1746143034789,29.7397,150.56,150.52,6.6412]
[1746143034987,4.01767068,150.55,150.52,6.6412]
[1746143035285,4.01767068,150.54,150.52,6.6412]
[1746143035487,4.01767068,150.53,150.52,6.6412]
[1746143036793,4.01767068,150.53,150.47,31.05380113]
[1746143036989,4.01767068,150.52,150.47,31.05380113]
[1746143037190,4.01767068,150.51,150.47,31.05380113]
[1746143037489,23.1,150.56,150.47,31.05380113]
[1746143037689,6.6408,150.53,150.5,6.6419]
[1746143037890,4.01808136,150.52,150.5,6.6419]
[1746143038196,4.01808136,150.51,150.5,6.6419]
[1746143040294,6.6401,150.55,150.51,6.6415]
[1746143040496,10.65893931,150.54,150.51,6.6415]
[1746143040696,4.01843931,150.53,150.51,6.6415]
[1746143040889,4.01843931,150.52,150.51,6.6415]
[1746143041402,4.01843931,150.52,150.5,6.6421]
[1746143041694,4.01863855,150.51,150.5,6.6421]
[1746143042595,23.1,150.56,150.54,6.6402]
[1746143044795,23.1,150.56,150.48,2.1169]
[1746143045693,29.7397,150.56,150.53,6.6407]
[1746143046500,23.1,150.56,150.54,6.6401]
[1746143046796,381.1088,150.58,150.48,2.1169]
[1746143047099,381.1088,150.58,150.55,6.6397]
[1746143048600,387.7475,150.58,150.55,6.6397]
[1746143049901,379.1,150.58,150.56,6.6394]
[1746143050101,379.1,150.58,150.51,23.1]
[1746143050301,23.1,150.58,150.51,27.2996]
[1746143051003,23.1,150.58,150.56,6.6391]
[1746143052705,23.1,150.58,150.57,6.6391]
[1746143056808,23.1,150.58,150.56,6.6393]
[1746143057009,23.1,150.58,150.51,27.2996]
[1746143057217,23.08,150.61,150.58,6.6385]
[1746143057397,532.677,150.62,150.53,7.95380113]
[1746143057602,28.15940428,150.62,150.56,5.07940428]
[1746143059107,28.15940428,150.62,150.59,6.638]
[1746143059511,23.08,150.62,150.59,6.638]
[1746143060606,29.717,150.62,150.59,6.638]
[1746143061014,23.08,150.62,150.59,6.638]
[1746143061807,29.7169,150.62,150.58,6.6384]
[1746143062014,23.08,150.62,150.58,6.6384]
[1746143062413,6.6374,150.61,150.58,6.6384]
[1746143062713,23.08,150.62,150.57,6.6389]
[1746143062914,6.638,150.6,150.57,6.6389]
[1746143063615,6.638,150.6,150.58,6.6385]
[1746143063815,6.6375,150.61,150.58,6.6385]
[1746143069620,6.6375,150.61,150.59,6.6381]
[1746143070223,23.08,150.62,150.6,6.6377]
[1746143070512,23.08,150.62,150.54,23.08]
[1746143070917,23.08,150.62,150.54,25.1207]
[1746143072113,29.7169,150.62,150.54,25.1207]
[1746143072718,29.7169,150.62,150.59,6.6379]
[1746143074609,23.08,150.62,150.54,25.1207]
[1746143075922,23.08,150.62,150.59,6.6378]
[1746143076424,23.08,150.62,150.6,6.6377]
[1746143080638,23.08,150.62,150.59,6.638]
[1746143081534,28.15938273,150.62,150.59,6.638]
[1746143082234,6.6373,150.61,150.59,6.638]
[1746143084936,5.07938273,150.6,150.54,23.08]
[1746143085331,6.6384,150.59,150.56,6.6392]
[1746143085939,6.6384,150.59,150.57,6.639]
[1746143086645,6.6384,150.59,150.56,6.6393]
[1746143088736,6.6387,150.58,150.56,6.6393]
[1746143088935,5.07938273,150.58,150.51,23.08]
[1746143089140,5.07938273,150.56,150.5,163.43750068]
[1746143089340,5.07938273,150.54,150.5,158.35811795]
[1746143090042,5.07938273,150.54,150.52,6.641]
[1746143091543,6.6402,150.55,150.52,6.641]
[1746143094146,29.7197,150.56,150.5,158.35811795]
[1746143094933,29.7197,150.56,150.53,6.6407]
[1746143100947,23.08,150.56,150.5,158.35811795]
[1746143101148,23.08,150.59,150.51,7.94440587]
[1746143101349,23.08,150.59,150.52,23.08]
[1746143101750,23.08,150.62,150.52,23.08]
[1746143101954,23.08,150.62,150.54,7.94440587]
[1746143102542,23.08,150.65,150.62,6.6368]
[1746143102738,23.08,150.65,150.57,31.02440587]
[1746143102944,23.08,150.65,150.58,4.0181]
[1746143103247,35.7217,150.68,150.64,6.6357]
[1746143103949,29.0872,150.68,150.64,6.6357]
[1746143104152,29.0872,150.68,150.63,6.6362]
[1746143104649,29.0872,150.68,150.61,6.6369]
[1746143104856,29.0872,150.68,150.58,6.0282]
[1746143105353,6.6355,150.65,150.6,6.6376]
[1746143105858,6.6355,150.65,150.61,6.6371]
[1746143106150,29.0872,150.68,150.58,6.0282]
[1746143106352,7.94440587,150.66,150.58,6.0282]
[1746143106656,7.94440587,150.66,150.59,6.6381]
[1746143106953,6.6368,150.63,150.59,6.6381]
[1746143107954,6.6368,150.63,150.6,6.6377]
[1746143110958,23.08,150.64,150.57,23.08]
[1746143111158,7.94440587,150.63,150.54,25.0778]
[1746143111559,6.6378,150.6,150.57,6.6388]
[1746143113055,6.6383,150.59,150.56,6.6393]
[1746143113253,23.06,150.6,150.54,23.06]
[1746143113452,31.00440587,150.6,150.53,1.9238]
[1746143113652,31.00440587,150.6,150.51,23.06]
[1746143113853,6.6389,150.58,150.55,6.6399]
[1746143115358,31.00440587,150.6,150.53,6.6405]
[1746143115657,356.0,150.59,150.5,158.35811795]
[1746143115960,7.94440587,150.57,150.5,158.35811795]
[1746143116261,23.06,150.56,150.5,158.35811795]
[1746143116453,29.6996,150.56,150.52,6.6409]
[1746143116761,29.6996,150.56,150.5,158.35811795]
[1746143117156,23.06,150.56,150.5,158.35811795]
[1746143117763,23.06,150.56,150.54,6.6402]
[1746143117960,29.6995,150.56,150.5,158.35811795]
[1746143118257,23.06,150.56,150.51,6.6417]
[1746143119266,23.06,150.56,150.52,6.6411]
[1746143119965,23.06,150.56,150.51,6.6415]
[1746143120458,6.6406,150.54,150.51,6.6415]
[1746143120666,24.9899,150.56,150.5,6.6419]
[1746143120869,24.9899,150.56,150.45,31.02440587]
[1746143121062,6.6409,150.53,150.5,6.642]
[1746143121369,24.9899,150.56,150.45,31.02440587]
[1746143121570,6.6408,150.54,150.51,6.6416]
[1746143123664,6.6408,150.53,150.51,6.6416]
[1746143124372,29.7213,150.52,150.45,23.08]
[1746143124659,23.08,150.51,150.45,23.08]
[1746143124866,23.08,150.51,150.48,6.6428]
[1746143125067,23.08,150.51,150.45,23.08]
[1746143125265,23.08,150.51,150.5,6.6421]
[1746143129067,23.08,150.51,150.49,6.6424]
[1746143135674,29.7217,150.51,150.49,6.6424]
[1746143136174,29.7217,150.51,150.45,23.08]
[1746143136372,23.08,150.51,150.45,23.08]
[1746143136682,31.02440587,150.51,150.42,23.08]
[1746143136877,31.02440587,150.51,150.39,37.15140587]
[1746143137176,2.1286,150.5,150.39,37.15140587]
[1746143137379,6.6437,150.47,150.39,37.15140587]
[1746143137675,29.7237,150.47,150.39,37.15140587]
[1746143137878,6.6441,150.46,150.39,29.207]
[1746143138274,23.08,150.47,150.39,29.207]
[1746143138471,6.6445,150.45,150.41,6.6459]
[1746143138673,6.6445,150.45,150.39,29.207]
[1746143139081,6.6441,150.46,150.39,29.207]
[1746143139876,6.6441,150.46,150.39,6.127]
[1746143140179,6.6441,150.46,150.41,6.6461]
[1746143140383,6.6441,150.46,150.39,6.127]
[1746143140681,29.7238,150.47,150.43,6.645]
[1746143140978,23.08,150.47,150.43,6.645]
[1746143142084,23.08,150.47,150.44,6.6447]
[1746143142485,23.08,150.47,150.39,6.127]
[1746143142688,6.6442,150.46,150.42,6.6453]
[1746143142885,6.6442,150.46,150.39,6.127]
[1746143143689,6.6444,150.45,150.39,6.127]
[1746143143885,23.08,150.47,150.39,6.127]
[1746143144185,6.6443,150.46,150.42,6.6454]
[1746143144887,6.6443,150.46,150.43,6.6452]
[1746143146592,6.6444,150.45,150.43,6.6452]
[1746143147988,6.6441,150.46,150.43,6.6452]
[1746143148388,23.08,150.47,150.43,6.6452]
[1746143148590,6.644,150.46,150.43,6.6452]
[1746143149190,6.6444,150.45,150.43,6.6452]
[1746143150495,6.6444,150.45,150.42,6.6455]
[1746143150789,6.6444,150.45,150.39,6.127]
[1746143151589,6.6441,150.46,150.43,6.6452]
[1746143153891,6.6444,150.45,150.43,6.6452]
[1746143155392,6.6444,150.45,150.42,6.6453]
[1746143155594,6.6448,150.44,150.42,6.6453]
[1746143156087,23.08,150.47,150.42,6.6453]
[1746143156292,6.6446,150.45,150.42,6.6453]
[1746143157486,6.6446,150.45,150.43,6.6452]
[1746143157681,23.08,150.47,150.39,4.081]
[1746143157887,23.1,150.47,150.39,4.081]
[1746143158195,356.0,150.49,150.4,23.1]
[1746143158588,23.1,150.5,150.41,2.0492]
[1746143158787,23.1,150.5,150.42,7.94440587]
[1746143159193,6.0221,150.55,150.41,15.3415]
[1746143159496,23.1,150.54,150.45,7.94440587]
[1746143159690,29.7408,150.54,150.5,6.6417]
[1746143160089,23.1,150.54,150.5,6.6417]
[1746143160394,23.1,150.54,150.48,6.6428]
[1746143160694,23.1,150.54,150.46,27.03]
[1746143160882,23.1,150.54,150.46,3.93]
[1746143161087,6.6421,150.51,150.47,6.6431]
[1746143161289,23.1,150.54,150.46,3.93]
[1746143161591,6.6411,150.53,150.49,6.6422]
[1746143161791,23.1,150.54,150.46,3.93]
[1746143162095,23.1,150.54,150.47,23.1]
[1746143162295,23.1,150.54,150.47,25.1767]
[1746143163094,6.6409,150.53,150.49,6.6425]
[1746143163898,6.6413,150.52,150.49,6.6425]
[1746143164394,6.6417,150.51,150.48,6.6428]
[1746143164602,7.94440587,150.53,150.44,23.08]
[1746143164794,13.84880587,150.53,150.44,23.08]
[1746143165598,13.84880587,150.53,150.47,6.6434]
[1746143166297,6.6425,150.5,150.47,6.6434]
[1746143166502,29.7225,150.5,150.47,6.6434]
[1746143167100,6.6427,150.49,150.47,6.6434]
[1746143167301,6.6427,150.49,150.46,6.6437]
[1746143167499,6.6427,150.49,150.44,23.08]
[1746143168304,29.7223,150.5,150.44,23.08]
[1746143168500,29.7223,150.5,150.47,6.6432]
[1746143170002,6.6426,150.49,150.46,6.6437]
[1746143170499,23.08,150.5,150.47,6.6434]
[1746143170500,29.7223,150.5,150.47,6.6434]
[1746143171702,6.6427,150.49,150.46,6.6437]
[1746143172802,29.7223,150.5,150.47,6.6434]
[1746143175601,6.6426,150.49,150.47,6.6434]
[1746143175804,23.08,150.5,150.47,6.6434]
[1746143176206,29.7223,150.5,150.47,6.6434]
[1746143178104,29.7223,150.5,150.48,6.643]
[1746143178307,23.08,150.5,150.44,23.08]
[1746143178604,23.08,150.5,150.48,6.6428]
[1746143179393,37.00880587,150.53,150.49,6.6423]
[1746143179908,27.1037,150.53,150.5,6.642]
[1746143180103,23.16,150.53,150.45,4.1487]
[1746143180497,29.8008,150.53,150.5,6.6417]
[1746143181305,23.16,150.53,150.51,6.6417]
[1746143181904,23.16,150.53,150.52,6.6413]
[1746143182105,23.16,150.53,150.45,4.1487]
[1746143182609,23.16,150.53,150.5,6.6417]
[1746143183207,23.16,150.53,150.51,6.6417]
[1746143184103,23.16,150.53,150.5,6.6419]
[1746143184303,29.8009,150.53,150.5,6.6419]
[1746143185305,6.6409,150.53,150.5,6.6419]
[1746143185609,6.6409,150.53,150.51,6.6416]
[1746143185811,6.6406,150.54,150.51,6.6416]
[1746143189119,6.6406,150.54,150.52,6.6412]
[1746143189314,356.0,150.55,150.45,4.1487]
[1746143189609,363.94440587,150.59,150.46,7.94440587]
[1746143189817,23.16,150.57,150.46,7.94440587]
[1746143190114,7.94440587,150.56,150.47,2.0851]
[1746143190314,6.6404,150.54,150.48,23.16]
[1746143191114,6.6409,150.53,150.48,23.16]
[1746143191308,7.94440587,150.56,150.48,23.16]
[1746143191816,6.6402,150.55,150.48,23.16]
[1746143192017,7.94440587,150.56,150.48,23.16]
[1746143192511,14.58410587,150.56,150.48,23.16]
[1746143192810,14.58410587,150.56,150.53,6.6405]
[1746143193015,7.94440587,150.56,150.48,23.16]
[1746143193208,7.94440587,150.56,150.54,6.6401]
[1746143193608,14.58400587,150.56,150.48,23.16]
[1746143194110,7.94440587,150.56,150.48,23.16]
[1746143194320,7.94440587,150.56,150.54,6.6403]
[1746143196123,14.58400587,150.56,150.54,6.6403]
[1746143196816,23.16,150.57,150.55,6.6399]
[1746143197121,23.16,150.57,150.48,23.16]
[1746143197314,23.16,150.57,150.56,6.6395]
[1746143198011,25.2125,150.6,150.5,1.9959]
[1746143198216,23.14,150.6,150.51,1.9281]
[1746143198418,23.14,150.6,150.58,6.6384]
[1746143199223,29.7778,150.6,150.57,6.6389]
[1746143200023,6.6382,150.59,150.57,6.6389]
[1746143201621,29.7779,150.6,150.57,6.6389]
[1746143201824,23.14,150.6,150.58,6.6386]
[1746143202025,23.14,150.6,150.52,25.2415]
[1746143202224,23.14,150.63,150.52,33.18590587]
[1746143202419,23.14,150.63,150.6,6.6377]
[1746143202614,29.7768,150.63,150.6,6.6377]
[1746143203330,6.6369,150.62,150.6,6.6377]
[1746143203530,6.6369,150.62,150.59,6.638]
[1746143204827,6.6369,150.62,150.6,6.6377]
[1746143205930,29.7766,150.63,150.6,6.6377]
[1746143207229,6.637,150.62,150.6,6.6377]
[1746143208226,29.7766,150.63,150.6,6.6377]
[1746143208429,29.7766,150.63,150.61,6.6372]
[1746143208630,23.14,150.63,150.56,23.14]
[1746143209130,23.14,150.63,150.6,6.6374]
[1746143209424,23.14,150.63,150.56,23.14]
[1746143209629,23.14,150.63,150.61,6.637]
[1746143210117,23.14,150.63,150.56,27.116]
[1746143210316,23.14,150.63,150.62,6.6369]
[1746143211029,23.14,150.63,150.61,6.6371]
[1746143211930,23.14,150.63,150.62,6.6369]
[1746143215531,23.14,150.63,150.61,6.6371]
[1746143216133,29.7764,150.63,150.61,6.6371]
[1746143216935,23.14,150.63,150.61,6.6371]
[1746143217831,23.14,150.63,150.62,6.6369]
[1746143218832,23.14,150.63,150.61,6.6371]
[1746143219825,23.14,150.63,150.62,6.6369]
[1746143220025,29.7764,150.63,150.56,27.116]
[1746143220628,6.6372,150.62,150.56,27.116]
[1746143220834,23.14,150.63,150.56,27.116]
[1746143221433,23.14,150.63,150.58,6.6386]
[1746143221833,23.14,150.63,150.56,23.14]
[1746143222033,6.6372,150.62,150.59,6.6382]
[1746143222335,23.14,150.63,150.56,23.14]
[1746143223536,34.85482041,150.63,150.6,6.6374]
[1746143223835,34.85482041,150.63,150.57,5.07842041]
[1746143224031,28.21842041,150.63,150.57,5.07842041]
[1746143224338,28.21842041,150.63,150.61,6.6372]
[1746143224524,28.21842041,150.63,150.57,5.07842041]
[1746143224730,28.21842041,150.63,150.57,7.00882041]
[1746143224930,28.21842041,150.63,150.57,9.05292041]
[1746143225238,5.07842041,150.64,150.59,5.07842041]
[1746143225834,5.07842041,150.64,150.63,6.6362]
[1746143228847,5.07842041,150.64,150.62,6.6367]
[1746143229139,5.07842041,150.64,150.59,5.07842041]
[1746143231347,5.07842041,150.64,150.63,6.6364]
[1746143233041,5.07842041,150.64,150.62,6.6367]
[1746143233246,5.07842041,150.64,150.57,11.13392041]
[1746143233435,5.07842041,150.62,150.57,11.13392041]
[1746143233636,5.07842041,150.64,150.57,11.13392041]
[1746143234537,5.07842041,150.64,150.62,6.6366]
[1746143235542,5.07842041,150.64,150.57,11.13392041]
[1746143236143,5.07842041,150.64,150.62,6.6366]
[1746143240045,11.71442041,150.64,150.62,6.6366]
[1746143240340,5.07842041,150.64,150.62,6.6366]
[1746143240643,5.07842041,150.64,150.63,6.6364]
[1746143243546,11.71462041,150.64,150.57,11.13392041]
[1746143244144,11.71462041,150.64,150.61,6.6371]
[1746143245047,11.71462041,150.64,150.62,6.6368]
[1746143245345,5.07842041,150.64,150.62,6.6368]
[1746143246647,11.71442041,150.64,150.62,6.6368]
[1746143249246,6.6366,150.63,150.61,6.6371]
[1746143249549,5.07842041,150.64,150.58,23.12]
[1746143250043,5.07842041,150.64,150.62,6.6366]
[1746143250441,28.21842041,150.66,150.59,5.07842041]
[1746143250746,28.21842041,150.66,150.61,5.07842041]
[1746143251237,5.07842041,150.66,150.61,5.07842041]
[1746143252050,11.71372041,150.66,150.61,5.07842041]
[1746143252448,5.07842041,150.66,150.61,5.07842041]
[1746143252851,5.07842041,150.66,150.64,6.6356]
[1746143253250,5.07842041,150.66,150.61,5.07842041]
[1746143253550,362.6344,150.68,150.63,5.07842041]
[1746143253551,361.07842041,150.68,150.63,5.07842041]
[1746143253751,5.07842041,150.68,150.63,5.07842041]
[1746143254147,5.07842041,150.68,150.66,6.635]
[1746143254345,5.07842041,150.68,150.63,5.07842041]
[1746143254946,55.6433611,150.76,150.62,23.12]
[1746143255146,5.07842041,150.74,150.67,5.07842041]
[1746143255358,11.71022041,150.74,150.7,6.633]
[1746143255655,6.6318,150.74,150.7,6.633]
[1746143256552,62.41255652,150.76,150.7,6.633]
[1746143256953,6.632,150.74,150.7,6.633]
[1746143257354,62.41255652,150.76,150.7,6.633]
[1746143257955,31.04449719,150.76,150.7,6.633]
[1746143258147,6.6321,150.73,150.7,6.633]
[1746143258346,31.04449719,150.76,150.71,6.6329]
[1746143259955,6.6321,150.73,150.7,6.6331]
[1746143261049,31.04449719,150.76,150.69,6.6336]
[1746143261356,31.04449719,150.76,150.66,23.12]
[1746143261657,6.6332,150.71,150.68,6.6341]
[1746143262159,6.6326,150.72,150.68,6.6341]
[1746143262456,6.6326,150.72,150.69,6.6336]
[1746143262659,6.6319,150.74,150.66,23.12]
[1746143262957,6.6319,150.74,150.7,6.6331]
[1746143263253,6.6321,150.73,150.7,6.6331]
[1746143263458,31.04449719,150.76,150.66,23.12]
[1746143263756,31.04449719,150.76,150.68,6.6339]
[1746143263957,6.6328,150.72,150.66,23.12]
[1746143264159,29.8328,150.72,150.69,6.6335]
[1746143264659,23.2,150.72,150.66,23.12]
[1746143265160,23.2,150.72,150.7,6.633]
[1746143265951,29.8325,150.72,150.69,6.6336]
[1746143266152,23.2,150.72,150.66,23.12]
[1746143267161,29.8325,150.72,150.7,6.6333]
[1746143267660,23.2,150.72,150.7,6.6333]
[1746143271963,23.2,150.72,150.71,6.6329]
[1746143273363,23.2,150.72,150.7,6.6331]
[1746143275565,23.2,150.72,150.71,6.6329]
[1746143276655,28.27221749,150.75,150.68,5.07221749]
[1746143277163,28.27221749,150.75,150.73,6.6319]
[1746143279269,34.90341749,150.75,150.73,6.6319]
[1746143279773,34.90341749,150.75,150.72,6.6322]
[1746143280165,28.27221749,150.75,150.66,36.3901]
[1746143280472,5.07221749,150.77,150.72,5.07221749]
[1746143280772,5.07221749,150.77,150.75,6.6309]
[1746143281270,5.07221749,150.77,150.72,5.07221749]
[1746143281768,5.07221749,150.77,150.7,28.27221749]
[1746143281961,6.6316,150.74,150.72,6.6323]
[1746143282467,11.70351749,150.75,150.72,6.6323]
[1746143283965,6.6316,150.74,150.72,6.6323]
[1746143284468,6.6321,150.73,150.7,28.27221749]
[1746143284667,11.70431749,150.73,150.7,23.2]
[1746143284866,5.07221749,150.73,150.68,5.07221749]
[1746143285058,11.70441749,150.73,150.7,6.633]
[1746143286071,5.07221749,150.73,150.67,23.2]
[1746143286264,5.07221749,150.69,150.64,28.27221749]
[1746143286570,5.07221749,150.71,150.64,28.27221749]
[1746143286768,11.70531749,150.71,150.68,6.634]
[1746143287773,7.14361749,150.73,150.66,5.07221749]
[1746143288176,5.07221749,150.73,150.66,5.07221749]
[1746143288470,5.07221749,150.73,150.68,5.07221749]
[1746143288672,28.27221749,150.74,150.68,5.07221749]
[1746143289069,34.90381749,150.74,150.71,6.6326]
[1746143289370,28.27221749,150.74,150.68,28.33221749]
[1746143289874,34.90381749,150.74,150.68,28.33221749]
[1746143290175,28.27221749,150.74,150.68,28.33221749]
[1746143291075,28.27221749,150.74,150.72,6.6323]
[1746143291574,23.2,150.74,150.72,6.6323]
[1746143291972,23.2,150.74,150.71,6.6327]
[1746143292175,23.2,150.74,150.68,23.26]
[1746143292569,6.6325,150.72,150.7,6.6333]
[1746143292874,23.2,150.74,150.7,6.6333]
[1746143293175,6.6321,150.73,150.7,6.6333]
[1746143293674,6.6321,150.73,150.71,6.6328]
[1746143295074,6.6321,150.73,150.7,6.6332]
[1746143296672,6.6325,150.72,150.69,6.6336]
[1746143298179,6.633,150.71,150.69,6.6336]
[1746143298379,31.12371865,150.74,150.67,6.6344]
[1746143298580,6.0363,150.73,150.67,6.6344]
[1746143298778,6.6336,150.7,150.67,6.6344]
[1746143299274,12.6685,150.73,150.65,23.26]
[1746143299479,6.0363,150.73,150.65,23.26]
[1746143300181,6.6325,150.72,150.69,6.6333]
[1746143301074,6.0363,150.73,150.65,23.26]
[1746143301273,6.6331,150.71,150.65,23.26]
[1746143301683,6.6331,150.71,150.69,6.6338]
[1746143302181,6.6331,150.71,150.68,6.634]
[1746143303183,6.6331,150.71,150.69,6.6337]
[1746143303888,6.6334,150.7,150.68,6.634]
[1746143304283,6.0363,150.73,150.68,6.634]
[1746143304475,6.6331,150.71,150.68,6.634]
[1746143306282,6.6335,150.7,150.68,6.634]
[1746143307487,6.6335,150.7,150.67,6.6345]
[1746143308390,6.6335,150.7,150.68,6.6342]
[1746143309189,6.6331,150.71,150.68,6.6342]
[1746143309891,6.6331,150.71,150.69,6.6337]
[1746143310585,6.6326,150.72,150.7,6.6332]
[1746143311295,12.6685,150.73,150.7,6.6332]
[1746143311588,6.0363,150.73,150.7,6.6332]
[1746143313189,6.6325,150.72,150.7,6.6332]
[1746143313492,11.70488294,150.72,150.7,6.6332]
[1746143315289,11.70488294,150.72,150.69,6.6336]
[1746143315891,6.633,150.71,150.69,6.6336]
[1746143317686,6.633,150.71,150.68,6.634]
[1746143318393,5.07238294,150.72,150.68,6.634]
[1746143319189,6.6333,150.71,150.68,6.634]
[1746143319391,5.07238294,150.72,150.68,6.634]
[1746143319591,5.07238294,150.7,150.67,6.6346]
[1746143319995,11.70588294,150.7,150.67,6.6346]
[1746143321095,6.6339,150.69,150.67,6.6346]
[1746143321793,11.70588294,150.7,150.67,6.6346]
[1746143323295,6.6338,150.69,150.67,6.6346]
[1746143324898,6.6331,150.71,150.66,5.07238294]
[1746143325095,5.07238294,150.72,150.65,28.33238294]
[1746143325288,5.07238294,150.7,150.65,23.26]
[1746143325495,6.6339,150.69,150.66,6.6347]
[1746143325900,11.70658294,150.68,150.65,6.6353]
[1746143328200,11.70658294,150.68,150.66,6.635]
[1746143329302,5.07238294,150.68,150.66,6.635]
[1746143335402,11.70668294,150.68,150.66,6.635]
[1746143336909,5.07238294,150.68,150.66,6.635]
[1746143339302,6.634,150.69,150.66,6.635]
[1746143339507,28.23238294,150.7,150.64,5.07238294]
[1746143340098,23.16,150.7,150.64,7.18558294]
[1746143340299,23.16,150.7,150.69,6.6338]
[1746143347511,34.86578294,150.7,150.66,5.07238294]
[1746143347709,34.86578294,150.7,150.64,7.18558294]
[1746143348103,34.86578294,150.7,150.67,6.6343]
[1746143350412,11.70688294,150.68,150.65,6.6354]
[1746143350709,5.07238294,150.68,150.63,4.0783]
[1746143350909,5.07238294,150.66,150.64,6.6358]
[1746143352412,6.6349,150.67,150.65,6.6355]
[1746143352612,5.07238294,150.68,150.63,5.07238294]
[1746143353309,5.07238294,150.68,150.66,6.6348]
[1746143353917,11.70688294,150.68,150.65,6.6353]
[1746143354125,5.07238294,150.66,150.62,23.16]
[1746143354512,5.07238294,150.66,150.61,229.45267642]
[1746143355317,5.07238294,150.64,150.61,229.45267642]
[1746143355615,5.07238294,150.64,150.61,6.6372]
[1746143356115,11.70848294,150.64,150.61,6.6372]